Workbook

Sheet Лист1
B1: - ячейки для подстановки значений
A3: h | B3: 30.99228636 | C3: =SUM(C6:C8) -> 30.99228636 | D3: =SUM(D6:D8) -> 30.99228636 | E3: =SUM(E6:E8) -> 30.99228636
A4: Ф | B4: =(1+SQRT(5))/2 -> 1.618033989 | C4: =(1+SQRT(5))/2 -> 1.618033989 | D4: =(1+SQRT(5))/2 -> 1.618033989 | E4: =(1+SQRT(5))/2 -> 1.618033989
A5: k | B5: =B3/2/B4^2 -> 5.919 | C5: =C6 -> 5.919 | D5: =D7/D4 -> 5.919 | E5: =E8/E4/E4 -> 5.919
A6: a | B6: =B5 -> 5.919 | C6: 5.919 | D6: =D5 -> 5.919 | E6: =E5 -> 5.919
A7: b | B7: =B5*B4 -> 9.577143179 | C7: =C5*C4 -> 9.577143179 | D7: 9.577143179 | E7: =E5*E4 -> 9.577143179
A8: c | B8: =B5*B4^2 -> 15.49614318 | C8: =C5*C4^2 -> 15.49614318 | D8: =D5*D4^2 -> 15.49614318 | E8: 15.49614318
A9: W | B9: =(B6+B7)*(B7+B8)/B7/SUM(B6:B8) -> 1.309016994 | C9: =(C6+C7)*(C7+C8)/C7/SUM(C6:C8) -> 1.309016994 | D9: =(D6+D7)*(D7+D8)/D7/SUM(D6:D8) -> 1.309016994 | E9: =(E6+E7)*(E7+E8)/E7/SUM(E6:E8) -> 1.309016994
